fUSD/lending_fUSD_20240802
["ID","MTS","AMOUNT","RATE_DAILY","PERIOD"]
[333884556,1722598252662,-500.0,0.00019178,2]
[333884557,1722598252671,-500.0,0.00019178,2]
[333884558,1722598252680,-664.3,0.00019178,2]
[333884559,1722598252689,-500.0,0.00019178,2]
[333884560,1722598252699,-500.0,0.00019178,2]
[333884561,1722598252707,-2882.49,0.00019178,2]
[333884562,1722598252717,-521.52,0.00019178,2]
[333884563,1722598252728,-151.0,0.00019178,2]
[333884564,1722598252737,-1079.92,0.00019178,2]
[333884565,1722598252746,-151.0,0.00019178,2]
[333884566,1722598252756,-1333.98,0.00019178,2]
[333884567,1722598252766,-151.0,0.00019178,2]
[333884568,1722598252777,-151.0,0.00019178,2]
[333884569,1722598252787,-500.0,0.00019178,2]
[333884570,1722598252796,-786.39,0.00019178,2]
[333884571,1722598252811,-151.0,0.00019178,2]
[333884572,1722598252824,-3609.47,0.00019178,2]
[333884573,1722598252834,-151.0,0.00019178,2]
[333884574,1722598252843,-151.0,0.00019178,2]
[333884575,1722598252855,-500.0,0.00019178,2]
[333884576,1722598252865,-151.0,0.00019178,2]
[333884577,1722598252875,-500.0,0.00019178,2]
[333884578,1722598252884,-675.49,0.00019178,2]
[333884579,1722598252893,-2679.82,0.00019178,2]
[333884580,1722598252903,-1319.55,0.00019178,2]
[333884581,1722598252913,-500.0,0.00019178,2]
[333884582,1722598252923,-500.0,0.00019178,2]
[333884583,1722598252932,-151.0,0.00019178,2]
[333884584,1722598252942,-151.0,0.00019178,2]
[333884585,1722598252951,-151.0,0.00019178,2]
[333884586,1722598252961,-151.0,0.00019178,2]
[333884587,1722598252970,-500.0,0.00019178,2]
[333884588,1722598252979,-500.0,0.00019178,2]
[333884589,1722598252989,-2528.37,0.00019178,2]
[333884590,1722598252999,-151.0,0.00019178,2]
[333884591,1722598253008,-500.0,0.00019178,2]
[333884592,1722598253018,-500.0,0.00019178,2]
[333884593,1722598253028,-151.0,0.00019178,2]
[333884594,1722598253037,-151.0,0.00019178,2]
[333884595,1722598253047,-151.0,0.00019178,2]
[333884596,1722598253060,-159.582541,0.00019178,2]
[333884597,1722598253070,-4058.06,0.00019178,2]
[333884598,1722598253080,-500.0,0.00019178,2]
[333884599,1722598253089,-3781.63,0.00019178,2]
[333884600,1722598253099,-2034.89,0.00019178,2]
[333884601,1722598253108,-500.0,0.00019178,2]
[333884602,1722598253118,-500.0,0.00019178,2]
[333884603,1722598253127,-500.0,0.00019178,2]
[333884604,1722598253136,-585.1,0.00019178,2]
[333884605,1722598253146,-599.40020526,0.00019178,2]
[333884606,1722598253155,-534.31,0.00019178,2]
[333884607,1722598253165,-2958.45,0.00019178,2]
[333884608,1722598253175,-500.0,0.00019178,2]
[333884609,1722598253185,-574.88,0.00019178,2]
[333884610,1722598253194,-1322.28,0.00019178,2]
[333884611,1722598253204,-932.0,0.00019178,2]
[333884612,1722598253214,-250.0,0.00019178,2]
[333884613,1722598253223,-500.0,0.00019178,2]
[333884614,1722598253233,-500.0,0.00019178,2]
[333884615,1722598253242,-287.024109,0.00019178,2]
[333884616,1722598253252,-500.0,0.00019178,2]
[333884617,1722598253261,-500.0,0.00019178,2]
[333884618,1722598253271,-500.0,0.00019178,2]
[333884619,1722598253280,-1063.3,0.00019178,2]
[333884620,1722598253289,-1944.95,0.00019178,2]
[333884621,1722598253299,-1338.52,0.00019178,2]
[333884622,1722598253309,-3281.92,0.00019178,2]
[333884623,1722598253319,-761.9,0.00019178,2]
[333884624,1722598253328,-500.0,0.00019178,2]
[333884625,1722598253338,-1118.49,0.00019178,2]
[333884626,1722598253347,-500.0,0.00019178,2]
[333884627,1722598253357,-1689.5,0.00019178,2]
[333884628,1722598253366,-500.0,0.00019178,2]
[333884629,1722598253376,-567.78,0.00019178,2]
[333884630,1722598253385,-500.0,0.00019178,2]
[333884631,1722598253395,-1129.58,0.00019178,2]
[333884632,1722598253404,-151.0,0.00019178,2]
[333884633,1722598253413,-500.0,0.00019178,2]
[333884634,1722598253423,-152.052973,0.00019178,2]
[333884635,1722598253432,-500.0,0.00019178,2]
[333884636,1722598253442,-500.0,0.00019178,2]
[333884637,1722598253451,-1165.9,0.00019178,2]
[333884638,1722598253460,-500.0,0.00019178,2]
[333884639,1722598253471,-5131.34,0.00019178,2]
[333884640,1722598253480,-1564.4,0.00019178,2]
[333884641,1722598253489,-3472.72,0.00019178,2]
[333884642,1722598253499,-605.16,0.00019178,2]
[333884643,1722598253508,-3729.36,0.00019178,2]
[333884644,1722598253518,-2066.9,0.00019178,2]
[333884645,1722598253527,-500.0,0.00019178,2]
[333884646,1722598253537,-1982.7,0.00019178,2]
[333884647,1722598253546,-500.0,0.00019178,2]
[333884648,1722598253558,-500.0,0.00019178,2]
[333884649,1722598253567,-500.0,0.00019178,2]
[333884650,1722598253577,-2293.65,0.00019178,2]
[333884651,1722598253586,-875.27,0.00019178,2]
[333884652,1722598253595,-2218.13,0.00019178,2]
[333884653,1722598253605,-1751.91,0.00019178,2]
[333884654,1722598253614,-500.0,0.00019178,2]
[333884655,1722598253624,-500.0,0.00019178,2]
[333884656,1722598253633,-906.49,0.00019178,2]
[333884657,1722598253643,-2707.11,0.00019178,2]
[333884658,1722598253652,-500.0,0.00019178,2]
[333884659,1722598253662,-3482.53,0.00019178,2]
[333884660,1722598253671,-519.83642032,0.00019178,2]
[333884661,1722598253680,-1113.96,0.00019178,2]
[333884662,1722598253690,-717.97,0.00019178,2]
[333884663,1722598253699,-500.0,0.00019178,2]
[333884664,1722598253708,-500.0,0.00019178,2]
[333884665,1722598253718,-727.39,0.00019178,2]
[333884666,1722598253727,-151.0,0.00019178,2]
[333884667,1722598253737,-151.0,0.00019178,2]
[333884668,1722598253746,-151.0,0.00019178,2]
[333884669,1722598253755,-5190.94,0.00019178,2]
[333884670,1722598253766,-915.46,0.00019178,2]
[333884671,1722598253778,-151.0,0.00019178,2]
[333884672,1722598253787,-151.0,0.00019178,2]
[333884673,1722598253796,-500.0,0.00019178,2]
[333884674,1722598253807,-500.0,0.00019178,2]
[333884675,1722598253817,-1935.39,0.00019178,2]
[333884676,1722598253827,-823.23,0.00019178,2]
[333884677,1722598253836,-151.0,0.00019178,2]
[333884678,1722598253846,-151.0,0.00019178,2]
[333884679,1722598253856,-500.0,0.00019178,2]
[333884680,1722598253865,-500.0,0.00019178,2]
[333884681,1722598253875,-465.170474,0.00019178,2]
[333884682,1722598253884,-500.0,0.00019178,2]
[333884683,1722598253894,-151.0,0.00019178,2]
[333884684,1722598253903,-465.170474,0.00019178,2]
[333884685,1722598253913,-465.170474,0.00019178,2]
[333884686,1722598253923,-465.170474,0.00019178,2]
[333884687,1722598253932,-998.13,0.00019178,2]
[333884688,1722598253942,-465.170474,0.00019178,2]
[333884689,1722598253951,-465.170474,0.00019178,2]
[333884690,1722598253961,-465.170474,0.00019178,2]
[333884691,1722598253971,-500.0,0.00019178,2]
[333884692,1722598253980,-465.170474,0.00019178,2]
[333884693,1722598253989,-500.0,0.00019178,2]
[333884694,1722598253998,-3407.7,0.00019178,2]
[333884695,1722598254008,-465.170474,0.00019178,2]
[333884696,1722598254017,-504.8,0.00019178,2]
[333884697,1722598254027,-465.170474,0.00019178,2]
[333884698,1722598254036,-572.4,0.00019178,2]
[333884699,1722598254046,-2141.12,0.00019178,2]
[333884700,1722598254057,-465.170474,0.00019178,2]
[333884701,1722598254067,-500.0,0.00019178,2]
[333884702,1722598254076,-465.170474,0.00019178,2]
[333884703,1722598254086,-465.170474,0.00019178,2]
[333884704,1722598254095,-465.170474,0.00019178,2]
[333884705,1722598254105,-465.170474,0.00019178,2]
[333884706,1722598254114,-1551.05,0.00019178,2]
[333884707,1722598254124,-465.170474,0.00019178,2]
[333884708,1722598254134,-465.170474,0.00019178,2]
[333884709,1722598254143,-500.0,0.00019178,2]
[333884710,1722598254152,-465.170474,0.00019178,2]
[333884711,1722598254163,-500.0,0.00019178,2]
[333884712,1722598254172,-500.0,0.00019178,2]
[333884713,1722598254182,-1905.43,0.00019178,2]
[333884714,1722598254192,-500.0,0.00019178,2]
[333884715,1722598254202,-1153.9,0.00019178,2]
[333884716,1722598254211,-500.0,0.00019178,2]
[333884717,1722598254221,-312.39710214,0.00019178,2]
[333884718,1722598254230,-500.0,0.00019178,2]
[333884719,1722598254240,-500.0,0.00019178,2]
[333884720,1722598254251,-151.0,0.00019178,2]
[333884721,1722598254261,-500.0,0.00019178,2]
[333884722,1722598254270,-500.0,0.00019178,2]
[333884723,1722598254280,-2883.27,0.00019178,2]
[333884724,1722598254289,-1228.84,0.00019178,2]
[333884725,1722598254299,-762.22,0.00019178,2]
[333884726,1722598254311,-227.87564609,0.00019178,2]
[333884727,1722598254320,-542.35,0.00019178,2]
[333884728,1722598254330,-790.12,0.00019178,2]
[333884729,1722598254339,-2754.37,0.00019178,2]
[333884730,1722598254349,-151.0,0.00019178,2]
[333884731,1722598254358,-1455.23,0.00019178,2]
[333884732,1722598254368,-4334.21,0.00019178,2]
[333884733,1722598254378,-500.0,0.00019178,2]
[333884734,1722598254388,-151.0,0.00019178,2]
[333884735,1722598254397,-1566.98,0.00019178,2]
[333884736,1722598254406,-151.0,0.00019178,2]
[333884737,1722598254416,-500.0,0.00019178,2]
[333884738,1722598254425,-151.0,0.00019178,2]
[333884739,1722598254435,-500.0,0.00019178,2]
[333884740,1722598254444,-500.0,0.00019178,2]
[333884741,1722598254454,-630.95,0.00019178,2]
[333884742,1722598254464,-1144.57,0.00019178,2]
[333884743,1722598254473,-579.77442897,0.00019178,2]
[333884744,1722598254483,-500.0,0.00019178,2]
[333884745,1722598254492,-500.0,0.00019178,2]
[333884746,1722598254502,-2505.71,0.00019178,2]
[333884747,1722598254512,-546.25,0.00019178,2]
[333884748,1722598254521,-500.0,0.00019178,2]
[333884749,1722598254532,-555.0,0.00019178,2]
[333884750,1722598254541,-966.55,0.00019178,2]
[333884751,1722598254551,-2415.45,0.00019178,2]
[333884752,1722598254562,-1498.58,0.00019178,2]
[333884753,1722598254572,-1275.76,0.00019178,2]
[333884754,1722598254582,-500.0,0.00019178,2]
[333884755,1722598254592,-500.0,0.00019178,2]
[333884756,1722598254602,-3440.13,0.00019178,2]
[333884757,1722598254611,-874.16,0.00019178,2]
[333884758,1722598254621,-2082.88,0.00019178,2]
[333884759,1722598254630,-500.0,0.00019178,2]
[333884760,1722598254640,-2547.52,0.00019178,2]
[333884761,1722598254650,-500.0,0.00019178,2]
[333884762,1722598254659,-618.8,0.00019178,2]
[333884763,1722598254669,-500.0,0.00019178,2]
[333884764,1722598254679,-500.0,0.00019178,2]
[333884765,1722598254689,-500.0,0.00019178,2]
[333884766,1722598254698,-2830.55,0.00019178,2]
[333884767,1722598254708,-1231.97,0.00019178,2]
[333884768,1722598254717,-151.0,0.00019178,2]
[333884769,1722598254727,-500.0,0.00019178,2]
[333884770,1722598254737,-500.0,0.00019178,2]
[333884771,1722598254746,-577.51,0.00019178,2]
[333884772,1722598254756,-500.0,0.00019178,2]
[333884773,1722598254767,-500.0,0.00019178,2]
[333884774,1722598254779,-500.0,0.00019178,2]
[333884775,1722598254789,-500.0,0.00019178,2]
[333884776,1722598254798,-690.27,0.00019178,2]
[333884777,1722598254812,-3726.31,0.00019178,2]
[333884778,1722598254821,-500.0,0.00019178,2]
[333884779,1722598254830,-2147.99,0.00019178,2]
[333884780,1722598254840,-1097.39,0.00019178,2]
[333884781,1722598254849,-500.0,0.00019178,2]
[333884782,1722598254861,-500.0,0.00019178,2]
[333884783,1722598254871,-3042.35,0.00019178,2]
[333884784,1722598254880,-799.13,0.00019178,2]
[333884785,1722598254889,-500.0,0.00019178,2]
[333884786,1722598254899,-500.0,0.00019178,2]
[333884787,1722598254908,-2128.39,0.00019178,2]
[333884788,1722598254918,-1190.83,0.00019178,2]
[333884789,1722598254928,-3001.5,0.00019178,2]
[333884790,1722598254937,-515.07065679,0.00019178,2]
[333884791,1722598254947,-2074.35,0.00019178,2]
[333884792,1722598254957,-500.0,0.00019178,2]
[333884793,1722598254966,-549.08,0.00019178,2]
[333884794,1722598254975,-500.0,0.00019178,2]
[333884795,1722598254984,-500.0,0.00019178,2]
[333884796,1722598254994,-500.0,0.00019178,2]
[333884797,1722598255003,-2129.23,0.00019178,2]
[333884798,1722598255013,-169.827954,0.00019178,2]
[333884799,1722598255022,-169.827954,0.00019178,2]
[333884800,1722598255032,-169.827954,0.00019178,2]
[333884801,1722598255041,-169.827954,0.00019178,2]
[333884802,1722598255051,-500.0,0.00019178,2]
[333884803,1722598255062,-1878.23,0.00019178,2]
[333884804,1722598255071,-169.827954,0.00019178,2]
[333884805,1722598255081,-169.827954,0.00019178,2]
[333884806,1722598255090,-169.827954,0.00019178,2]
[333884807,1722598255100,-169.827954,0.00019178,2]
[333884808,1722598255109,-169.827954,0.00019178,2]
[333884809,1722598255119,-169.827954,0.00019178,2]
[333884810,1722598255128,-169.827954,0.00019178,2]
[333884811,1722598255138,-169.827954,0.00019178,2]
[333884812,1722598255147,-169.827954,0.00019178,2]
[333884813,1722598255156,-169.827954,0.00019178,2]
[333884814,1722598255166,-500.0,0.00019178,2]
[333884815,1722598255175,-169.827954,0.00019178,2]
[333884816,1722598255185,-169.827954,0.00019178,2]
[333884817,1722598255194,-2644.91,0.00019178,2]
[333884818,1722598255204,-500.0,0.00019178,2]
[333884819,1722598255213,-169.827954,0.00019178,2]
[333884820,1722598255223,-169.827954,0.00019178,2]
[333884821,1722598255232,-1101.86,0.00019178,2]
[333884822,1722598255241,-856.91,0.00019178,2]
[333884823,1722598255250,-500.0,0.00019178,2]
[333884824,1722598255259,-500.0,0.00019178,2]
[333884825,1722598255268,-500.0,0.00019178,2]
[333884826,1722598255278,-3963.34,0.00019178,2]
[333884827,1722598255287,-847.17,0.00019178,2]
[333884828,1722598255296,-1021.96,0.00019178,2]
[333884829,1722598255307,-2127.18,0.00019178,2]
[333884830,1722598255317,-151.0,0.00019178,2]
[333884831,1722598255326,-500.0,0.00019178,2]
[333884832,1722598255335,-500.0,0.00019178,2]
[333884833,1722598255345,-151.0,0.00019178,2]
[333884834,1722598255354,-500.0,0.00019178,2]
[333884835,1722598255364,-151.0,0.00019178,2]
[333884836,1722598255373,-1850.84,0.00019178,2]
[333884837,1722598255383,-151.0,0.00019178,2]
[333884838,1722598255393,-1824.18,0.00019178,2]
[333884839,1722598255402,-151.0,0.00019178,2]
[333884840,1722598255412,-151.0,0.00019178,2]
[333884841,1722598255421,-500.0,0.00019178,2]
[333884842,1722598255431,-151.0,0.00019178,2]
[333884843,1722598255440,-151.0,0.00019178,2]
[333884844,1722598255449,-151.0,0.00019178,2]
[333884845,1722598255459,-500.0,0.00019178,2]
[333884846,1722598255469,-151.0,0.00019178,2]
[333884847,1722598255479,-151.0,0.00019178,2]
[333884848,1722598255489,-151.0,0.00019178,2]
[333884849,1722598255498,-1442.91,0.00019178,2]
[333884850,1722598255507,-151.0,0.00019178,2]
[333884851,1722598255518,-292.006307,0.00019178,2]
[333884852,1722598255527,-500.0,0.00019178,2]
[333884853,1722598255536,-1000.73,0.00019178,2]
[333884854,1722598255546,-500.0,0.00019178,2]
[333884855,1722598255558,-500.0,0.00019178,2]
[333884856,1722598255567,-500.0,0.00019178,2]
[333884857,1722598255577,-500.0,0.00019178,2]
[333884858,1722598255587,-500.0,0.00019178,2]
[333884859,1722598255597,-920.39,0.00019178,2]
[333884860,1722598255606,-500.0,0.00019178,2]
[333884861,1722598255616,-2265.13,0.00019178,2]
[333884862,1722598255625,-500.0,0.00019178,2]
[333884863,1722598255635,-500.0,0.00019178,2]
[333884864,1722598255643,-3217.45,0.00019178,2]
[333884865,1722598255653,-500.0,0.00019178,2]
[333884866,1722598255662,-3230.57,0.00019178,2]
[333884867,1722598255671,-2711.66,0.00019178,2]
[333884868,1722598255681,-500.0,0.00019178,2]
[333884869,1722598255690,-500.0,0.00019178,2]
[333884870,1722598255700,-2593.81,0.00019178,2]
[333884871,1722598255709,-1772.25,0.00019178,2]
[333884872,1722598255718,-1078.64,0.00019178,2]
[333884873,1722598255727,-500.0,0.00019178,2]
[333884874,1722598255736,-500.0,0.00019178,2]
[333884875,1722598255745,-500.0,0.00019178,2]
[333884876,1722598255754,-1501.16,0.00019178,2]
[333884877,1722598255764,-2053.62,0.00019178,2]
[333884878,1722598255774,-1303.31,0.00019178,2]
[333884879,1722598255785,-500.0,0.00019178,2]
[333884880,1722598255794,-500.0,0.00019178,2]
[333884881,1722598255805,-151.0,0.00019178,2]
[333884882,1722598255814,-2815.83,0.00019178,2]
[333884883,1722598255823,-151.0,0.00019178,2]
[333884884,1722598255832,-272.96585617,0.00019178,2]
[333884885,1722598255841,-545.8,0.00019178,2]
[333884886,1722598255853,-914.31,0.00019178,2]
[333884887,1722598255862,-1196.93,0.00019178,2]
[333884888,1722598255872,-3449.35,0.00019178,2]
[333884889,1722598255881,-3653.06,0.00019178,2]
[333884890,1722598255891,-2952.43,0.00019178,2]
[333884891,1722598255900,-500.0,0.00019178,2]
[333884892,1722598255909,-820.22,0.00019178,2]
[333884893,1722598255919,-500.0,0.00019178,2]
[333884894,1722598255929,-500.0,0.00019178,2]
[333884895,1722598255938,-500.0,0.00019178,2]
[333884896,1722598255947,-500.0,0.00019178,2]
[333884897,1722598255956,-646.32,0.00019178,2]
[333884898,1722598255966,-500.0,0.00019178,2]
[333884899,1722598255975,-733.4,0.00019178,2]
[333884900,1722598255984,-539.98527644,0.00019178,2]
[333884901,1722598255994,-1761.81,0.00019178,2]
[333884902,1722598256003,-500.0,0.00019178,2]
[333884903,1722598256013,-363.23995423,0.00019178,2]
[333884904,1722598256022,-1749.76,0.00019178,2]
[333884905,1722598256032,-500.0,0.00019178,2]
[333884906,1722598256042,-500.0,0.00019178,2]
[333884907,1722598256051,-17219.91,0.00019178,2]
[333884908,1722598256062,-1079.06,0.00019178,2]
[333884909,1722598256072,-5606.75,0.00019178,2]
[333884910,1722598256083,-500.0,0.00019178,2]
[333884911,1722598256093,-409.159592,0.00019178,2]
[333884912,1722598256103,-151.0,0.00019178,2]
[333884913,1722598256113,-636.86,0.00019178,2]
[333884914,1722598256123,-409.159592,0.00019178,2]
[333884915,1722598256132,-151.0,0.00019178,2]
[333884916,1722598256142,-409.159592,0.00019178,2]
[333884917,1722598256151,-281.523922,0.00019178,2]
[333884918,1722598256160,-409.159592,0.00019178,2]
[333884919,1722598256170,-500.0,0.00019178,2]
[333884920,1722598256179,-409.159592,0.00019178,2]
[333884921,1722598256189,-1358.03,0.00019178,2]
[333884922,1722598256198,-409.159592,0.00019178,2]
[333884923,1722598256207,-151.0,0.00019178,2]
[333884924,1722598256217,-409.159592,0.00019178,2]
[333884925,1722598256227,-151.0,0.00019178,2]
[333884926,1722598256236,-159.527522,0.00019178,2]
[333884927,1722598256428,-409.159592,0.00019178,2]
[333884928,1722598256438,-5539.34,0.00019178,2]
[333884929,1722598256448,-159.527522,0.00019178,2]
[333884930,1722598256458,-151.0,0.00019178,2]
[333884931,1722598256468,-409.159592,0.00019178,2]
[333884932,1722598256478,-151.0,0.00019178,2]
[333884933,1722598256488,-159.527522,0.00019178,2]
[333884934,1722598256498,-151.0,0.00019178,2]
[333884935,1722598256508,-159.527522,0.00019178,2]
[333884936,1722598256518,-159.527522,0.00019178,2]
[333884937,1722598256527,-3467.77,0.00019178,2]
[333884938,1722598256537,-409.159592,0.00019178,2]
[333884939,1722598256546,-159.527522,0.00019178,2]
[333884940,1722598256556,-159.527522,0.00019178,2]
[333884941,1722598256566,-165.790482,0.00019178,2]
[333884942,1722598256575,-409.159592,0.00019178,2]
[333884943,1722598256585,-159.527522,0.00019178,2]
[333884944,1722598256595,-409.159592,0.00019178,2]
[333884945,1722598256605,-159.527522,0.00019178,2]
[333884946,1722598256615,-522.79,0.00019178,2]
[333884947,1722598256624,-409.159592,0.00019178,2]
[333884948,1722598256634,-2740.66,0.00019178,2]
[333884949,1722598256644,-409.159592,0.00019178,2]
[333884950,1722598256653,-159.527522,0.00019178,2]
[333884951,1722598256663,-409.159592,0.00019178,2]
[333884952,1722598256672,-500.0,0.00019178,2]
[333884953,1722598256681,-500.0,0.00019178,2]
[333884954,1722598256691,-159.527522,0.00019178,2]
[333884955,1722598256701,-2068.77,0.00019178,2]
[333884956,1722598256710,-409.159592,0.00019178,2]
[333884957,1722598256720,-159.527522,0.00019178,2]
[333884958,1722598256730,-159.527522,0.00019178,2]
[333884959,1722598256740,-409.159592,0.00019178,2]
[333884960,1722598256749,-500.0,0.00019178,2]
[333884961,1722598256761,-159.527522,0.00019178,2]
[333884962,1722598256772,-500.0,0.00019178,2]
[333884963,1722598256784,-159.527522,0.00019178,2]
[333884964,1722598256793,-409.159592,0.00019178,2]
[333884965,1722598256804,-159.527522,0.00019178,2]
[333884966,1722598256815,-500.0,0.00019178,2]
[333884967,1722598256825,-159.527522,0.00019178,2]
[333884968,1722598256835,-80888.66,0.00019178,2]
[333884969,1722598256845,-159.527522,0.00019178,2]
[333884970,1722598256858,-1790.78,0.00019178,2]
[333884971,1722598256868,-7920.89,0.00019178,2]
[333884972,1722598256878,-500.0,0.00019178,2]
[333884973,1722598256887,-20579.26,0.00019178,2]
[333884974,1722598256896,-500.0,0.00019178,2]
[333884975,1722598256906,-1383.57,0.00019178,2]
[333884976,1722598256915,-3100.25,0.00019178,2]
[333884977,1722598256924,-500.0,0.00019178,2]
[333884978,1722598256934,-790.34,0.00019178,2]
[333884979,1722598256945,-2517.65,0.00019178,2]
[333884980,1722598256954,-511.67,0.00019178,2]
[333884981,1722598256964,-3892.42,0.00019178,2]
[333884982,1722598256973,-500.0,0.00019178,2]
[333884983,1722598256982,-500.0,0.00019178,2]
[333884984,1722598256992,-3542.97,0.00019178,2]
[333884985,1722598257001,-500.0,0.00019178,2]
[333884986,1722598257010,-500.0,0.00019178,2]
[333884987,1722598257019,-2353.52,0.00019178,2]
[333884988,1722598257029,-1222.14,0.00019178,2]
[333884989,1722598257038,-1406.1,0.00019178,2]
[333884990,1722598257048,-275.105362,0.00019178,2]
[333884991,1722598257058,-1391.5,0.00019178,2]
[333884992,1722598257067,-844.77,0.00019178,2]
[333884993,1722598257076,-3413.93,0.00019178,2]
[333884994,1722598257086,-17414.22,0.00019178,2]
[333884995,1722598257097,-500.0,0.00019178,2]
[333884996,1722598257107,-1887.94,0.00019178,2]
[333884997,1722598257116,-731.97,0.00019178,2]
[333884998,1722598257126,-151.0,0.00019178,2]
[333884999,1722598257136,-2676.56,0.00019178,2]
[333885000,1722598257146,-3882.48,0.00019178,2]
[333885001,1722598257157,-500.0,0.00019178,2]
[333885002,1722598257167,-500.0,0.00019178,2]
[333885003,1722598257176,-2082.25,0.00019178,2]
[333885004,1722598257186,-1822.88,0.00019178,2]
[333885005,1722598257196,-500.0,0.00019178,2]
[333885006,1722598257207,-1748.2,0.00019178,2]
[333885007,1722598257216,-27641.0,0.00019178,2]
[333885008,1722598257226,-151.0,0.00019178,2]
[333885009,1722598257236,-151.0,0.00019178,2]
[333885010,1722598257245,-151.0,0.00019178,2]
[333885011,1722598257255,-3099.5,0.00019178,2]
[333885012,1722598257264,-500.0,0.00019178,2]
[333885013,1722598257274,-4039.64,0.00019178,2]
[333885014,1722598257283,-151.0,0.00019178,2]
[333885015,1722598257293,-1495.77,0.00019178,2]
[333885016,1722598257303,-594.32741306,0.00019178,2]
[333885017,1722598257312,-500.0,0.00019178,2]
[333885018,1722598257322,-4334.12,0.00019178,2]
[333885019,1722598257331,-277.662857,0.00019178,2]
[333885020,1722598257342,-1754.25,0.00019178,2]
[333885021,1722598257352,-203.81873702,0.00019178,2]
[333885022,1722598257362,-500.0,0.00019178,2]
[333885023,1722598257372,-2690.82,0.00019178,2]
[333885024,1722598257381,-500.0,0.00019178,2]
[333885025,1722598257391,-1221.6,0.00019178,2]
[333885026,1722598257401,-959.14,0.00019178,2]
[333885027,1722598257411,-500.0,0.00019178,2]
[333885028,1722598257421,-3399.01,0.00019178,2]
[333885029,1722598257431,-594.4,0.00019178,2]
[333885030,1722598257440,-500.0,0.00019178,2]
[333885031,1722598257451,-774.81,0.00019178,2]
[333885032,1722598257461,-505.08650729,0.00019178,2]
[333885033,1722598257471,-500.0,0.00019178,2]
[333885034,1722598257481,-500.0,0.00019178,2]
[333885035,1722598257490,-500.0,0.00019178,2]
[333885036,1722598257500,-2766.56,0.00019178,2]
[333885037,1722598257510,-3788.08,0.00019178,2]
[333885038,1722598257519,-572.07,0.00019178,2]
[333885039,1722598257530,-577.75,0.00019178,2]
[333885040,1722598257539,-1603.23,0.00019178,2]
[333885041,1722598257549,-84062.64,0.00019178,2]
[333885042,1722598257560,-500.0,0.00019178,2]
[333885043,1722598257570,-500.0,0.00019178,2]
[333885044,1722598257579,-12400.64,0.00019178,2]
[333885045,1722598257590,-836.73,0.00019178,2]
[333885046,1722598257601,-2806.1,0.00019178,2]
[333885047,1722598257611,-3061.32,0.00019178,2]
[333885048,1722598257621,-3855.4,0.00019178,2]
[333885049,1722598257630,-1410.14,0.00019178,2]
[333885050,1722598257640,-500.0,0.00019178,2]
[333885051,1722598257649,-3310.1,0.00019178,2]
[333885052,1722598257659,-500.0,0.00019178,2]
[333885053,1722598257668,-797.58,0.00019178,2]
[333885054,1722598257678,-500.0,0.00019178,2]
[333885055,1722598257688,-2332.93,0.00019178,2]